bitfinex/quotes_SOLUSD_20230104
["timestamp","ask_amount","ask_price","bid_price","bid_amount"]
[1672807000728,105.58177333,13.506,13.5,30.0]
[1672807001483,105.58177333,13.506,13.497,20.0]
[1672807001905,14.6384449,13.506,13.498,30.0]
[1672807002096,14.6384449,13.506,13.499,20.0]
[1672807002307,14.6384449,13.506,13.5,30.0]
[1672807002735,14.6384449,13.506,13.5,32.145]
[1672807003253,14.6384449,13.506,13.5,30.0]
[1672807003680,14.6384449,13.506,13.499,20.0]
[1672807003891,14.6384449,13.506,13.492,53.0835]
[1672807003892,55.59,13.505,13.493,47.2431]
[1672807004944,55.59,13.505,13.494,30.0]
[1672807006194,14.6384449,13.506,13.494,30.0]
[1672807006951,14.6384449,13.506,13.493,77.2431]
[1672807006952,14.6384449,13.506,13.493,47.2431]
[1672807007169,55.58,13.507,13.494,30.0]
[1672807007781,81.9207681,13.508,13.494,30.0]
[1672807007991,55.58,13.507,13.493,77.2431]
[1672807008218,55.58,13.507,13.494,30.0]
[1672807009778,55.58,13.507,13.493,47.2431]
[1672807009985,122.90989334,13.507,13.493,47.2431]
[1672807010216,85.58,13.507,13.493,47.2431]
[1672807010414,55.58,13.507,13.493,47.2431]
[1672807010747,55.58,13.507,13.494,30.0]
[1672807011162,55.58,13.507,13.493,47.2431]
[1672807011570,68.63123107,13.506,13.49,115.6054]
[1672807011780,68.63123107,13.506,13.483,23.0327]
[1672807011781,30.0,13.504,13.484,30.0]
[1672807011986,75.59,13.503,13.484,142.1263]
[1672807012195,55.59,13.503,13.484,142.1263]
[1672807012427,55.59,13.503,13.484,219.21420399]
[1672807012951,55.59,13.503,13.486,30.0]
[1672807013140,55.59,13.503,13.488,30.0]
[1672807013350,55.59,13.503,13.489,20.0]
[1672807013560,55.59,13.503,13.49,30.0]
[1672807013998,47.9354,13.504,13.49,30.0]
[1672807014187,55.59,13.503,13.49,30.0]
[1672807015556,47.9354,13.504,13.49,141.0196]
[1672807015988,55.59,13.503,13.49,141.0196]
[1672807017261,47.9354,13.504,13.49,141.0196]
[1672807017448,55.59,13.503,13.49,141.0196]
[1672807018195,47.9354,13.504,13.49,141.0196]
[1672807019883,55.59,13.503,13.49,141.0196]
[1672807021595,55.59,13.503,13.49,111.0196]
[1672807022409,104.08819774,13.503,13.49,111.0196]
[1672807022633,30.0,13.502,13.49,111.0196]
[1672807022839,55.6,13.501,13.485,23.8737]
[1672807023149,30.0,13.5,13.485,23.8737]
[1672807023357,75.61,13.499,13.485,23.8737]
[1672807023689,124.10819774,13.499,13.485,23.8737]
[1672807025039,124.10819774,13.499,13.486,30.0]
[1672807025887,124.10819774,13.499,13.485,53.8737]
[1672807026723,124.10819774,13.499,13.486,30.0]
[1672807028327,161.32334442,13.499,13.486,30.0]
[1672807029048,161.32334442,13.499,13.485,23.8737]
[1672807029049,48.49819774,13.498,13.485,23.8737]
[1672807029239,55.62,13.497,13.485,23.8737]
[1672807029450,92.83514668,13.497,13.485,23.8737]
[1672807029681,85.71334442,13.496,13.485,23.8737]
[1672807029887,55.63,13.495,13.485,23.8737]
[1672807030505,215.76732354,13.495,13.485,23.8737]
[1672807031038,43.29363122,13.494,13.469,223.79167093]
[1672807031250,55.64,13.493,13.474,182.91847245]
[1672807031449,20.0,13.492,13.474,182.91847245]
[1672807031651,55.64,13.491,13.474,182.91847245]
[1672807031866,30.0,13.489,13.474,182.91847245]
[1672807032093,55.66,13.488,13.474,182.91847245]
[1672807032301,30.0,13.487,13.474,182.91847245]
[1672807032509,55.66,13.486,13.474,182.91847245]
[1672807032723,109.52515538,13.486,13.474,182.91847245]
[1672807032933,100.53381692,13.485,13.474,182.91847245]
[1672807033148,55.67,13.484,13.474,182.91847245]
[1672807033368,156.20381692,13.484,13.474,182.91847245]
[1672807033581,100.53381692,13.483,13.474,182.91847245]
[1672807033898,23.9406,13.495,13.483,120.40269843]
[1672807034306,43.29363122,13.498,13.483,120.40269843]
[1672807034515,30.0,13.496,13.484,108.4595]
[1672807034736,55.63,13.495,13.484,108.4595]
[1672807035272,37.44338571,13.494,13.484,108.4595]
[1672807035461,55.64,13.493,13.484,108.4595]
[1672807035999,55.64,13.493,13.485,30.0]
[1672807036191,55.62,13.497,13.485,30.0]
[1672807036620,55.62,13.497,13.484,157.1553]
[1672807037047,51.37877604,13.497,13.484,157.1553]
[1672807037669,30.0,13.496,13.484,157.1553]
[1672807037879,55.63,13.495,13.484,157.1553]
[1672807038093,55.62,13.497,13.484,157.1553]
[1672807038934,30.0,13.496,13.484,157.1553]
[1672807039144,30.0,13.494,13.484,157.1553]
[1672807039360,55.64,13.493,13.484,157.1553]
[1672807039993,30.0,13.492,13.484,157.1553]
[1672807041042,30.0,13.497,13.484,157.1553]
[1672807041665,30.0,13.495,13.484,157.1553]
[1672807041867,55.63,13.494,13.484,157.1553]
[1672807042082,30.0,13.493,13.484,157.1553]
[1672807042295,30.0,13.491,13.484,157.1553]
[1672807042515,30.0,13.491,13.483,120.40269843]
[1672807042719,75.65,13.49,13.483,120.40269843]
[1672807042929,30.0,13.489,13.483,120.40269843]
[1672807043129,55.66,13.488,13.483,120.40269843]
[1672807043361,30.0,13.487,13.483,120.40269843]
[1672807043582,30.0,13.485,13.483,120.40269843]
[1672807043890,55.67,13.484,13.483,120.40269843]
[1672807044319,97.40152274,13.484,13.483,120.40269843]
[1672807045368,41.73152274,13.484,13.483,120.40269843]
[1672807047149,30.0,13.483,13.474,64.32457245]
[1672807047363,30.0,13.481,13.474,64.32457245]
[1672807047682,30.0,13.479,13.474,64.32457245]
[1672807047880,30.0,13.477,13.474,64.32457245]
[1672807048088,55.7,13.478,13.474,64.32457245]
[1672807048418,55.69,13.479,13.474,64.32457245]
[1672807048621,118.4525,13.487,13.474,64.32457245]
[1672807048833,30.0,13.486,13.474,64.32457245]
[1672807049445,55.67,13.485,13.474,64.32457245]
[1672807050304,55.66,13.486,13.474,64.32457245]
[1672807050498,85.66,13.486,13.474,111.60227245]
[1672807050703,30.0,13.485,13.474,111.60227245]
[1672807050928,113.45602107,13.486,13.474,111.60227245]
[1672807051153,41.73152274,13.484,13.474,111.60227245]
[1672807051339,118.4525,13.487,13.474,111.60227245]
[1672807051673,30.0,13.486,13.474,111.60227245]
[1672807051860,127.39152274,13.486,13.474,111.60227245]
[1672807052277,85.66,13.486,13.474,111.60227245]
[1672807052491,30.0,13.484,13.474,111.60227245]
[1672807052702,85.67,13.484,13.474,111.60227245]
[1672807052932,30.0,13.482,13.474,111.60227245]
[1672807053125,55.67,13.485,13.474,111.60227245]
[1672807053964,55.66,13.486,13.474,111.60227245]
[1672807054598,85.66,13.486,13.474,111.60227245]
[1672807054812,30.0,13.485,13.474,111.60227245]
[1672807055038,55.67,13.484,13.474,111.60227245]
[1672807055568,41.73152274,13.483,13.474,111.60227245]
[1672807056712,118.4525,13.487,13.474,111.60227245]
[1672807056918,55.66,13.486,13.474,111.60227245]
[1672807057120,85.66,13.486,13.474,111.60227245]
[1672807057556,127.39152274,13.486,13.474,111.60227245]
[1672807057879,30.0,13.485,13.474,111.60227245]
[1672807058296,30.0,13.483,13.474,111.60227245]
[1672807058614,41.73152274,13.482,13.474,111.60227245]
[1672807061442,30.0,13.481,13.474,111.60227245]
[1672807061647,41.73152274,13.482,13.474,111.60227245]
[1672807061859,41.73152274,13.481,13.474,111.60227245]
[1672807062072,103.6116,13.486,13.474,111.60227245]
[1672807062387,41.73152274,13.485,13.474,111.60227245]
[1672807063013,97.40152274,13.485,13.474,111.60227245]
[1672807065248,41.73152274,13.485,13.475,30.0]
[1672807065665,47.9516,13.486,13.475,30.0]
[1672807065977,20.0,13.503,13.475,30.0]
[1672807065978,30.0,13.501,13.476,1.967]
[1672807066194,20.0,13.5,13.476,69.318]
[1672807066388,20.0,13.5,13.477,30.0]
[1672807066597,55.61,13.499,13.478,21.967]
[1672807066808,46.6308,13.498,13.479,157.0908]
[1672807067026,102.2508,13.497,13.481,30.0]
[1672807067247,102.2508,13.497,13.482,47.351]
[1672807067639,102.2508,13.497,13.483,30.0]
[1672807067878,102.2508,13.497,13.483,78.2342]
[1672807077957,102.2508,13.497,13.483,48.2342]
[1672807078178,102.2508,13.497,13.484,30.0]
[1672807079130,102.2508,13.497,13.484,76.2032]
[1672807087224,102.2508,13.497,13.484,46.2032]
[1672807087744,102.2508,13.497,13.48,1.966]
[1672807087745,81.5359581,13.496,13.48,1.966]
[1672807087951,30.0,13.494,13.48,1.966]
[1672807088149,75.64,13.493,13.48,1.966]
[1672807088363,30.0,13.492,13.48,1.966]
[1672807088571,55.64,13.491,13.48,30.0]
[1672807088786,43.09198741,13.492,13.48,30.0]
[1672807089411,55.63,13.494,13.479,109.7398]
[1672807089743,55.63,13.494,13.48,30.0]
[1672807089953,55.63,13.494,13.48,79.4798]
[1672807090155,55.63,13.494,13.48,47.5558]
[1672807090685,85.63,13.494,13.481,24.781]
[1672807091095,85.63,13.494,13.481,49.1296]
[1672807091423,55.63,13.494,13.481,49.1296]
[1672807092369,30.0,13.494,13.481,49.1296]
[1672807092775,30.0,13.494,13.481,48.9296]
[1672807092988,221.886,13.495,13.481,48.9296]
[1672807093515,221.886,13.495,13.481,24.3486]
[1672807095520,166.256,13.495,13.481,24.3486]
[1672807095715,55.63,13.494,13.481,24.3486]
[1672807096342,166.256,13.495,13.482,30.0]
[1672807096558,78.0637468,13.51,13.482,30.0]
[1672807096559,55.58,13.507,13.483,20.0]
[1672807096764,213.9002,13.507,13.484,30.0]
[1672807096972,30.0,13.506,13.485,20.0]
[1672807097200,55.59,13.505,13.487,30.0]
[1672807097413,55.59,13.505,13.488,20.0]
[1672807097822,102.8944,13.505,13.49,30.0]
[1672807098035,47.3044,13.505,13.491,48.113]
[1672807098243,77.3044,13.505,13.491,48.113]
[1672807098446,47.3044,13.505,13.491,48.113]
[1672807098869,77.3044,13.505,13.491,48.113]
[1672807099402,47.3044,13.505,13.492,30.0]
[1672807099812,47.3044,13.505,13.492,148.463]
[1672807100024,47.3044,13.505,13.492,118.463]
[1672807100234,47.3044,13.505,13.493,30.0]
[1672807100885,47.3044,13.505,13.492,164.6755]
[1672807102975,47.3044,13.505,13.492,153.00827604]
[1672807103190,30.0,13.504,13.492,153.00827604]
[1672807104346,77.3044,13.505,13.492,153.00827604]
[1672807104539,47.3044,13.505,13.492,153.00827604]
[1672807104979,77.3044,13.505,13.492,153.00827604]
[1672807105596,47.3044,13.505,13.492,153.00827604]
[1672807105801,30.0,13.504,13.492,153.00827604]
[1672807106240,47.3044,13.505,13.493,30.0]
[1672807106767,47.3044,13.505,13.493,53.9624]
[1672807107377,55.56,13.512,13.493,53.9624]
[1672807107586,55.56,13.512,13.494,20.0]
[1672807107813,83.03358887,13.508,13.495,23.9624]
[1672807108029,83.03358887,13.508,13.497,30.0]
[1672807108215,83.03358887,13.508,13.498,20.0]
[1672807108426,83.03358887,13.508,13.499,30.0]
[1672807110438,83.03358887,13.508,13.501,30.0]
[1672807111804,83.03358887,13.508,13.498,187.6866]
[1672807112024,83.03358887,13.508,13.499,30.0]
[1672807112229,83.03358887,13.508,13.498,119.4697]
[1672807112449,55.58,13.507,13.498,119.4697]
[1672807112652,113.24978453,13.507,13.498,119.4697]
[1672807112863,74.37615331,13.506,13.498,119.4697]
[1672807113079,30.0,13.504,13.498,119.4697]
[1672807113293,55.59,13.503,13.498,119.4697]
[1672807113495,99.96615331,13.503,13.494,48.677]
[1672807113919,55.58,13.506,13.495,30.0]
[1672807114337,55.58,13.507,13.495,30.0]
[1672807114771,44.37615331,13.506,13.495,30.0]
[1672807115712,44.37615331,13.506,13.494,48.677]
[1672807115908,55.59,13.505,13.494,48.677]
[1672807116334,44.37615331,13.504,13.494,48.677]
[1672807116544,55.59,13.503,13.494,48.677]
[1672807116766,55.58,13.506,13.494,48.677]
[1672807117694,30.0,13.505,13.494,48.677]
[1672807117901,55.59,13.504,13.494,48.677]
[1672807118114,44.37095331,13.505,13.494,48.677]
[1672807118363,55.59,13.504,13.494,48.677]
[1672807118546,99.96095331,13.504,13.494,48.677]
[1672807119182,44.37095331,13.504,13.494,48.677]
[1672807119399,55.59,13.503,13.494,48.677]
[1672807119797,44.37095331,13.502,13.494,48.677]
[1672807122428,30.0,13.501,13.494,48.677]
[1672807122841,30.0,13.501,13.488,53.569]
[1672807122842,74.37095331,13.501,13.488,23.569]
[1672807123053,74.37095331,13.501,13.489,20.0]
[1672807123274,74.37095331,13.501,13.479,38.44534086]
[1672807123275,75.61,13.5,13.483,71.4392]
[1672807123495,30.0,13.499,13.483,71.4392]
[1672807123686,55.62,13.498,13.483,71.4392]
[1672807123896,30.0,13.497,13.483,71.4392]
[1672807124107,55.62,13.496,13.483,71.4392]
[1672807124424,99.99095331,13.496,13.483,71.4392]
[1672807124637,44.37095331,13.495,13.483,71.4392]
[1672807131893,44.37095331,13.495,13.484,30.0]
[1672807132527,44.37095331,13.495,13.483,71.4392]
[1672807134960,23.4919,13.497,13.484,30.0]
[1672807135684,23.4919,13.497,13.484,47.6155]
[1672807135898,23.4919,13.497,13.485,30.0]
[1672807136320,23.4919,13.497,13.484,47.6155]
[1672807136730,55.61,13.5,13.485,30.0]
[1672807136945,55.6,13.501,13.486,20.0]
[1672807137166,97.43432036,13.502,13.487,30.0]
[1672807137376,41.42791797,13.501,13.488,67.6155]
[1672807137592,71.42791797,13.501,13.488,67.6155]
[1672807138432,30.0,13.5,13.488,67.6155]
[1672807139044,71.42791797,13.5,13.484,23.2103]
[1672807139359,88.90363122,13.499,13.484,69.9834]
[1672807139585,30.0,13.498,13.484,69.9834]
[1672807139796,55.62,13.497,13.484,69.9834]
[1672807139991,30.0,13.496,13.484,69.9834]
[1672807140202,55.63,13.495,13.484,69.9834]
[1672807140627,30.0,13.494,13.484,69.9834]
[1672807140956,41.42791797,13.493,13.484,69.9834]
[1672807141163,30.0,13.491,13.484,69.9834]
[1672807141373,30.0,13.491,13.48,112.4327]
[1672807141579,71.42791797,13.491,13.48,112.4327]
[1672807142114,119.50223833,13.491,13.48,112.4327]
[1672807143051,119.50223833,13.491,13.478,1.924]
[1672807143052,88.94363122,13.49,13.478,1.924]
[1672807143269,30.0,13.489,13.478,1.924]
[1672807143582,30.0,13.487,13.478,1.924]
[1672807144002,30.0,13.485,13.478,1.924]
[1672807144320,95.27652644,13.486,13.478,1.924]
[1672807144848,78.07432036,13.485,13.478,1.924]
[1672807145043,47.20220608,13.486,13.478,1.924]
[1672807145461,30.0,13.485,13.478,1.924]
[1672807145672,30.0,13.485,13.475,23.1223]
[1672807147358,30.0,13.487,13.475,23.1223]
[1672807148921,225.11552253,13.49,13.475,23.1223]
[1672807148922,37.65549131,13.49,13.476,31.985]
[1672807149132,23.7844,13.493,13.477,20.0]
[1672807149340,61.43989131,13.493,13.478,118.1033]
[1672807149560,61.43989131,13.493,13.479,20.0]
[1672807149779,61.43989131,13.493,13.48,25.6788]
[1672807150416,61.43989131,13.493,13.48,50.3883]
[1672807150613,30.0,13.492,13.48,50.3883]
[1672807151349,91.43989131,13.493,13.48,50.3883]
[1672807151563,61.43989131,13.493,13.48,50.3883]
[1672807152203,91.43989131,13.493,13.48,50.3883]
[1672807153562,30.0,13.492,13.48,50.3883]
[1672807154920,91.43989131,13.493,13.481,30.0]
[1672807154921,23.7844,13.493,13.481,30.0]
[1672807155138,23.7844,13.493,13.481,54.7343]
[1672807157235,23.7844,13.493,13.481,24.7343]
[1672807158097,23.7844,13.493,13.482,30.0]
[1672807158825,23.7844,13.493,13.481,54.7343]
[1672807159231,23.7844,13.493,13.481,24.7343]
[1672807159959,23.7844,13.493,13.482,30.0]
[1672807160399,23.7844,13.493,13.481,24.7343]
[1672807160933,23.7844,13.493,13.482,29.0]
[1672807161134,23.7844,13.493,13.481,24.7343]
[1672807166613,30.0,13.492,13.481,24.7343]
[1672807168185,23.7844,13.493,13.481,24.7343]
[1672807168926,23.7844,13.493,13.482,30.0]
[1672807169536,22.8472,13.494,13.482,30.0]
[1672807169762,22.8472,13.494,13.481,78.9107]
[1672807170178,22.8472,13.494,13.481,48.9107]
[1672807170391,60.50269131,13.494,13.481,48.9107]
[1672807172473,60.50269131,13.494,13.482,30.0]
[1672807172898,22.8472,13.494,13.482,54.6654]
[1672807173649,22.8472,13.494,13.482,24.6654]
[1672807173839,60.50269131,13.494,13.482,24.6654]
[1672807174930,22.8472,13.494,13.483,30.0]
[1672807175314,22.8472,13.494,13.483,54.7126]
[1672807175745,22.521,13.496,13.485,30.0]
[1672807175955,55.58,13.506,13.486,20.0]
[1672807176173,30.0,13.505,13.486,20.0]
[1672807176366,55.59,13.504,13.486,20.0]
[1672807176580,22.779,13.503,13.487,160.2193]
[1672807177001,22.779,13.503,13.489,30.0]
[1672807177729,22.779,13.503,13.49,24.3813]
[1672807178375,22.779,13.503,13.491,30.0]
[1672807178789,22.779,13.503,13.491,29.0]
[1672807178993,22.779,13.503,13.491,53.3813]
[1672807185296,22.779,13.503,13.491,24.3813]
[1672807185522,11.83916539,13.502,13.491,24.3813]
[1672807185726,30.0,13.5,13.491,24.3813]
[1672807186134,93.08215797,13.501,13.491,24.3813]
[1672807186346,37.48215797,13.501,13.491,24.3813]
[1672807187182,78.369,13.503,13.492,30.0]
[1672807187397,22.779,13.503,13.492,30.0]
[1672807188973,22.779,13.503,13.491,48.7813]
[1672807189391,22.779,13.503,13.492,30.0]
[1672807190247,22.779,13.503,13.492,29.0]
[1672807190677,22.779,13.503,13.492,53.2662]
[1672807191127,22.779,13.503,13.492,24.2662]
[1672807192252,22.779,13.503,13.493,30.0]
[1672807192462,22.779,13.503,13.492,24.2662]
[1672807196769,52.779,13.503,13.492,24.2662]
[1672807197304,22.779,13.503,13.492,24.2662]
[1672807198539,52.779,13.503,13.492,24.2662]
[1672807198750,30.0,13.502,13.492,24.2662]
[1672807198977,22.779,13.503,13.492,24.2662]
[1672807199195,52.779,13.503,13.492,24.2662]
[1672807199816,108.369,13.503,13.492,24.2662]
[1672807200132,30.0,13.502,13.492,24.2662]
[1672807200970,67.48215797,13.502,13.492,24.2662]
[1672807203187,30.0,13.5,13.492,24.2662]
[1672807203606,30.0,13.5,13.487,2.249]
[1672807203607,75.61,13.499,13.487,2.249]
[1672807203823,87.44916539,13.499,13.481,46.5632]
[1672807204037,77.09498516,13.498,13.481,156.4204]
[1672807204238,55.62,13.497,13.481,156.4204]
[1672807204451,114.55415055,13.497,13.482,46.5632]
[1672807204767,30.0,13.495,13.482,46.5632]
[1672807204973,30.0,13.493,13.483,46.5632]
[1672807205180,55.64,13.492,13.483,46.5632]
[1672807205385,47.09498516,13.492,13.483,46.5632]
[1672807205617,77.09498516,13.491,13.483,46.5632]
[1672807205932,47.09498516,13.49,13.483,46.5632]
[1672807206344,30.0,13.489,13.483,46.5632]
[1672807206553,30.0,13.489,13.481,109.8572]
[1672807206761,77.09498516,13.489,13.481,109.8572]
[1672807207184,47.09498516,13.489,13.481,109.8572]
[1672807207838,30.0,13.488,13.481,109.8572]
[1672807208358,73.20174516,13.488,13.481,109.8572]
[1672807208544,73.20174516,13.488,13.477,47.9163]
[1672807208753,73.20174516,13.488,13.478,20.0]
[1672807210115,73.20174516,13.488,13.477,47.9163]
[1672807210330,73.20174516,13.488,13.475,24.5078]
[1672807210331,30.0,13.486,13.475,24.5078]
[1672807210762,30.0,13.486,13.473,24.7237]
[1672807211179,78.5579,13.487,13.473,24.7237]
[1672807211392,30.0,13.486,13.473,24.7237]
[1672807211589,30.0,13.486,13.473,47.725]
[1672807214023,69.7289056,13.486,13.473,47.725]
[1672807214959,30.0,13.484,13.473,47.725]
[1672807215373,85.67,13.485,13.473,47.725]
[1672807215581,30.0,13.485,13.473,47.725]
[1672807215807,69.7289056,13.485,13.473,47.725]
[1672807217684,23.5851,13.486,13.474,32.073]
[1672807217905,79.0814,13.491,13.474,32.073]
[1672807217906,23.4414,13.491,13.474,32.073]
[1672807218114,23.4414,13.491,13.476,30.0]
[1672807218315,23.4414,13.491,13.478,30.0]
[1672807218526,163.2762,13.493,13.479,22.073]
[1672807218742,163.2762,13.493,13.479,70.7212]
[1672807219164,163.2762,13.493,13.48,30.0]
[1672807219467,163.2762,13.493,13.481,3.089]
[1672807219673,47.3376,13.493,13.481,3.089]
[1672807220103,47.3376,13.493,13.481,25.22052883]
[1672807220316,47.3376,13.493,13.481,3.089]
[1672807224837,47.3376,13.493,13.482,30.0]
[1672807226093,47.3376,13.493,13.481,70.40422883]
[1672807226303,55.64,13.492,13.481,45.1837]
[1672807229694,47.3376,13.493,13.482,30.0]
[1672807230614,47.3376,13.493,13.481,45.1837]
[1672807231679,55.64,13.492,13.481,45.1837]
[1672807232521,30.0,13.491,13.481,45.1837]
[1672807232923,85.64,13.492,13.481,45.1837]
[1672807233256,55.64,13.492,13.481,45.1837]
[1672807234083,30.0,13.491,13.481,45.1837]
[1672807234939,55.64,13.492,13.481,45.1837]
[1672807236305,102.9776,13.493,13.481,45.1837]
[1672807237332,47.3376,13.493,13.482,30.0]
[1672807238174,47.3376,13.493,13.481,45.1837]
[1672807238609,47.3376,13.493,13.481,67.6237]
[1672807239038,47.3376,13.493,13.481,45.1837]
[1672807240072,30.0,13.492,13.481,45.1837]
[1672807240290,30.0,13.492,13.462,224.96351938]
[1672807240291,97.47916539,13.492,13.477,21.35]
[1672807240497,97.47916539,13.492,13.478,66.3817]
[1672807240498,30.0,13.491,13.478,66.3817]
[1672807240695,30.0,13.491,13.479,22.5708]
[1672807240696,55.65,13.49,13.479,22.5708]
[1672807240906,30.0,13.489,13.479,22.5708]
[1672807241335,55.65,13.49,13.479,22.5708]
[1672807242821,30.0,13.49,13.479,22.5708]
[1672807244062,55.64,13.491,13.479,22.5708]
[1672807244274,30.0,13.49,13.479,22.5708]
[1672807245447,29.5,13.49,13.479,22.5708]
[1672807248707,29.5,13.49,13.48,20.0]
[1672807249964,30.0,13.488,13.48,20.0]
[1672807250906,34.10804074,13.495,13.481,30.0]
[1672807251123,55.62,13.498,13.483,30.0]
[1672807251318,55.59,13.503,13.484,55.67]
[1672807251530,85.58,13.506,13.486,30.0]
[1672807251739,85.58,13.506,13.487,241.3519]
[1672807251937,30.0,13.505,13.488,30.0]
[1672807252151,55.59,13.504,13.489,20.0]
[1672807252469,55.59,13.504,13.489,66.1149]
[1672807252678,30.0,13.503,13.489,66.1149]
[1672807252901,55.6,13.502,13.49,46.1149]
[1672807253526,55.59,13.504,13.49,46.1149]
[1672807253741,55.59,13.504,13.491,46.1149]
[1672807254492,55.59,13.504,13.492,23.5754]
[1672807255556,55.59,13.504,13.492,48.0122]
[1672807255862,1.13653242,13.503,13.492,48.0122]
[1672807256055,55.6,13.502,13.492,48.0122]
[1672807256268,55.6,13.502,13.493,30.0]
[1672807256473,1.13653242,13.503,13.493,30.0]
[1672807256683,1.13653242,13.503,13.494,24.4486]
[1672807257962,55.58,13.506,13.494,48.8854]
[1672807258180,263.57691001,13.528,13.494,48.8854]
[1672807258181,55.56,13.511,13.495,30.0]
[1672807258368,30.0,13.511,13.497,30.0]
[1672807258578,55.57,13.509,13.496,48.3441]
[1672807258803,85.58,13.507,13.496,48.3441]
[1672807259208,30.0,13.506,13.496,48.3441]
[1672807259421,55.59,13.505,13.497,30.0]
[1672807259630,93.75993349,13.508,13.497,30.0]
[1672807259631,55.58,13.507,13.497,30.0]
[1672807259858,81.9207681,13.508,13.497,30.0]
[1672807260163,0.75946838,13.504,13.497,30.0]
[1672807260996,81.9207681,13.508,13.497,30.0]
[1672807261313,81.9207681,13.508,13.496,48.3441]
[1672807262062,81.4207681,13.508,13.496,48.3441]
[1672807262473,136.9907681,13.508,13.496,48.3441]
[1672807263201,81.4207681,13.508,13.496,48.3441]
[1672807263838,81.4207681,13.508,13.497,30.0]
[1672807264041,81.4207681,13.508,13.496,48.3441]
[1672807264818,30.0,13.507,13.496,48.3441]
[1672807266700,136.9907681,13.508,13.496,48.3441]
[1672807267324,136.9907681,13.508,13.497,30.0]
[1672807267535,81.4207681,13.508,13.497,30.0]
[1672807267961,55.58,13.507,13.497,30.0]
[1672807268378,81.4207681,13.508,13.497,30.0]
[1672807270693,81.4207681,13.508,13.496,78.3441]
[1672807271109,81.4207681,13.508,13.496,77.8441]
[1672807271432,81.4207681,13.508,13.497,30.0]
[1672807272271,81.4207681,13.508,13.499,30.0]
[1672807272580,81.4207681,13.508,13.501,30.0]
[1672807272785,81.4207681,13.508,13.503,30.0]
[1672807273725,81.4207681,13.508,13.503,52.13152883]
[1672807273940,81.4207681,13.508,13.505,30.0]
[1672807275325,12.4507681,13.508,13.505,30.0]
[1672807275958,78.0637468,13.51,13.507,30.0]
[1672807276144,78.0637468,13.51,13.509,30.0]
[1672807276356,4.68e-05,13.51,13.509,30.0]
[1672807276566,4.68e-05,13.51,13.509,50.0]
[1672807276998,0.0028691,13.513,13.509,72.13152883]
[1672807277211,0.0028691,13.513,13.511,30.0]
[1672807277428,0.0028691,13.513,13.512,47.1818]
[1672807277617,55.51,13.524,13.513,30.0]
[1672807277827,48.8158,13.526,13.513,30.0]
[1672807278144,55.5,13.525,13.513,30.0]
[1672807278372,55.5,13.525,13.512,77.1818]
[1672807278569,55.5,13.525,13.513,30.0]
[1672807279208,55.5,13.525,13.513,77.1818]
[1672807280250,55.5,13.525,13.513,47.1818]
[1672807281922,1.19252275,13.524,13.513,69.31332883]
[1672807282139,1.19252275,13.524,13.514,30.0]
[1672807282554,1.19252275,13.524,13.516,30.0]